fUSD/lending_fUSD_20260621
["ID","MTS","AMOUNT","RATE_DAILY","PERIOD"]
[425918256,1782035456000,-500.0,0.00027671,2]
[425918257,1782035456000,-500.0,0.00027671,2]
[425918267,1782035456000,-500.0,0.00027671,2]
[425918260,1782035456000,-500.0,0.00027671,2]
[425918266,1782035456000,-500.0,0.00027671,2]
[425918263,1782035456000,-3121.95,0.00027671,2]
[425918264,1782035456000,-500.0,0.00027671,2]
[425918262,1782035456000,-1568.81,0.00027671,2]
[425918265,1782035456000,-500.0,0.00027671,2]
[425918268,1782035456000,-3663.15,0.00027671,2]
[425918269,1782035456000,-500.0,0.00027671,2]
[425918218,1782035456000,-2994.55,0.00027671,2]
[425918261,1782035456000,-3656.35,0.00027671,2]
[425918242,1782035456000,-733.18,0.00027671,2]
[425918246,1782035456000,-500.0,0.00027671,2]
[425918236,1782035456000,-251.90843351,0.00027671,2]
[425918214,1782035456000,-500.0,0.00027671,2]
[425918241,1782035456000,-1984.27,0.00027671,2]
[425918213,1782035456000,-500.0,0.00027671,2]
[425918210,1782035456000,-500.0,0.00027671,2]
[425918216,1782035456000,-3087.38,0.00027671,2]
[425918209,1782035456000,-500.0,0.00027671,2]
[425918223,1782035456000,-640.94,0.00027671,2]
[425918222,1782035456000,-500.0,0.00027671,2]
[425918220,1782035456000,-3174.39,0.00027671,2]
[425918225,1782035456000,-500.0,0.00027671,2]
[425918224,1782035456000,-2017.55,0.00027671,2]
[425918221,1782035456000,-500.0,0.00027671,2]
[425918229,1782035456000,-500.0,0.00027671,2]
[425918215,1782035456000,-500.0,0.00027671,2]
[425918226,1782035456000,-589.93,0.00027671,2]
[425918228,1782035456000,-529.95,0.00027671,2]
[425918238,1782035456000,-566.58,0.00027671,2]
[425918239,1782035456000,-500.0,0.00027671,2]
[425918233,1782035456000,-500.0,0.00027671,2]
[425918240,1782035456000,-500.0,0.00027671,2]
[425918237,1782035456000,-6402.78,0.00027671,2]
[425918234,1782035456000,-3014.61,0.00027671,2]
[425918235,1782035456000,-3898.85,0.00027671,2]
[425918232,1782035456000,-500.0,0.00027671,2]
[425918227,1782035456000,-5272.4,0.00027671,2]
[425918231,1782035456000,-500.0,0.00027671,2]
[425918230,1782035456000,-3135.6,0.00027671,2]
[425918310,1782035457000,-500.0,0.00027944,2]
[425918316,1782035457000,-500.0,0.00027944,2]
[425918309,1782035457000,-500.0,0.00027944,2]
[425918301,1782035457000,-7890.61443717,0.000277,2]
[425918306,1782035457000,-453.92154642,0.00027916,14]
[425918312,1782035457000,-500.0,0.00027944,2]
[425918314,1782035457000,-500.0,0.00027944,2]
[425918302,1782035457000,-2850.75856373,0.00027701,2]
[425918304,1782035457000,-2850.75856373,0.00027903,2]
[425918303,1782035457000,-7890.61443717,0.00027902,2]
[425918307,1782035457000,-1703.25748187,0.00027923,2]
[425918305,1782035457000,-172.00410195,0.00027916,14]
[425918311,1782035457000,-352.82920083,0.00027944,2]
[425918324,1782035457000,-500.0,0.00027944,2]
[425918315,1782035457000,-500.0,0.00027944,2]
[425918313,1782035457000,-500.0,0.00027944,2]
[425918328,1782035457000,-501.82455082,0.00027945,2]
[425918321,1782035457000,-2065.41,0.00027944,2]
[425918325,1782035457000,-500.0,0.00027944,2]
[425918327,1782035457000,-501.82455082,0.00027945,2]
[425918318,1782035457000,-500.0,0.00027944,2]
[425918320,1782035457000,-2065.41,0.00027944,2]
[425918322,1782035457000,-2065.41,0.00027944,2]
[425918323,1782035457000,-500.0,0.00027944,2]
[425918326,1782035457000,-153.0,0.00027945,2]
[425918300,1782035457000,-500.0,0.00027671,2]
[425918308,1782035457000,-500.0,0.00027944,2]
[425918293,1782035457000,-500.0,0.00027671,2]
[425918275,1782035457000,-500.0,0.00027671,2]
[425918298,1782035457000,-500.0,0.00027671,2]
[425918317,1782035457000,-500.0,0.00027944,2]
[425918274,1782035457000,-381.84766306,0.00027671,2]
[425918270,1782035457000,-500.0,0.00027671,2]
[425918271,1782035457000,-500.0,0.00027671,2]
[425918272,1782035457000,-500.0,0.00027671,2]
[425918273,1782035457000,-500.0,0.00027671,2]
[425918277,1782035457000,-500.0,0.00027671,2]
[425918279,1782035457000,-506.06235668,0.00027671,2]
[425918278,1782035457000,-500.0,0.00027671,2]
[425918276,1782035457000,-1168.42,0.00027671,2]
[425918282,1782035457000,-5445.29,0.00027671,2]
[425918280,1782035457000,-500.0,0.00027671,2]
[425918283,1782035457000,-500.0,0.00027671,2]
[425918284,1782035457000,-500.0,0.00027671,2]
[425918291,1782035457000,-574.96,0.00027671,2]
[425918281,1782035457000,-500.0,0.00027671,2]
[425918285,1782035457000,-500.0,0.00027671,2]
[425918288,1782035457000,-500.0,0.00027671,2]
[425918289,1782035457000,-642.08,0.00027671,2]
[425918287,1782035457000,-1289.61,0.00027671,2]
[425918290,1782035457000,-418.51691915,0.00027671,2]
[425918286,1782035457000,-500.0,0.00027671,2]
[425918292,1782035457000,-500.0,0.00027671,2]
[425918295,1782035457000,-500.0,0.00027671,2]
[425918294,1782035457000,-2943.64,0.00027671,2]
[425918297,1782035457000,-500.0,0.00027671,2]
[425918296,1782035457000,-244.98597376,0.00027671,2]
[425918299,1782035457000,-500.0,0.00027671,2]
[425918340,1782035457000,-500.0,0.00027945,2]
[425918319,1782035457000,-2065.41,0.00027944,2]
[425918337,1782035457000,-709.48,0.00027945,2]
[425918362,1782035457000,-696.98,0.00027945,2]
[425918363,1782035457000,-500.0,0.00027945,2]
[425918361,1782035457000,-500.0,0.00027945,2]
[425918375,1782035457000,-500.0,0.00027945,2]
[425918372,1782035457000,-500.0,0.00027945,2]
[425918376,1782035457000,-500.0,0.00027945,2]
[425918368,1782035457000,-500.0,0.00027945,2]
[425918366,1782035457000,-500.0,0.00027945,2]
[425918365,1782035457000,-500.0,0.00027945,2]
[425918371,1782035457000,-500.0,0.00027945,2]
[425918374,1782035457000,-500.0,0.00027945,2]
[425918367,1782035457000,-500.0,0.00027945,2]
[425918354,1782035457000,-500.0,0.00027945,2]
[425918377,1782035457000,-500.0,0.00027945,2]
[425918373,1782035457000,-234.81013797,0.00027945,2]
[425918369,1782035457000,-500.0,0.00027945,2]
[425918380,1782035457000,-500.0,0.00027945,2]
[425918382,1782035457000,-500.0,0.00027945,2]
[425918387,1782035457000,-500.0,0.00027945,2]
[425918379,1782035457000,-500.0,0.00027945,2]
[425918389,1782035457000,-500.0,0.00027945,2]
[425918388,1782035457000,-500.0,0.00027945,2]
[425918383,1782035457000,-544.31,0.00027945,2]
[425918386,1782035457000,-570.62,0.00027945,2]
[425918384,1782035457000,-500.0,0.00027945,2]
[425918385,1782035457000,-13223.39874,0.00027945,2]
[425918370,1782035457000,-500.0,0.00027945,2]
[425918355,1782035457000,-500.0,0.00027945,2]
[425918378,1782035457000,-500.0,0.00027945,2]
[425918358,1782035457000,-500.0,0.00027945,2]
[425918359,1782035457000,-500.0,0.00027945,2]
[425918333,1782035457000,-501.82455083,0.00027945,2]
[425918336,1782035457000,-500.0,0.00027945,2]
[425918334,1782035457000,-500.0,0.00027945,2]
[425918330,1782035457000,-501.82455082,0.00027945,2]
[425918338,1782035457000,-500.0,0.00027945,2]
[425918381,1782035457000,-648.87418673,0.00027945,2]
[425918331,1782035457000,-501.82455082,0.00027945,2]
[425918335,1782035457000,-500.0,0.00027945,2]
[425918332,1782035457000,-501.82455082,0.00027945,2]
[425918339,1782035457000,-879.04,0.00027945,2]
[425918341,1782035457000,-500.0,0.00027945,2]
[425918348,1782035457000,-500.0,0.00027945,2]
[425918343,1782035457000,-500.0,0.00027945,2]
[425918329,1782035457000,-501.82455082,0.00027945,2]
[425918345,1782035457000,-500.0,0.00027945,2]
[425918342,1782035457000,-500.0,0.00027945,2]
[425918360,1782035457000,-500.0,0.00027945,2]
[425918357,1782035457000,-500.0,0.00027945,2]
[425918364,1782035457000,-500.0,0.00027945,2]
[425918353,1782035457000,-500.0,0.00027945,2]
[425918346,1782035457000,-500.0,0.00027945,2]
[425918356,1782035457000,-500.0,0.00027945,2]
[425918347,1782035457000,-500.0,0.00027945,2]
[425918352,1782035457000,-500.0,0.00027945,2]
[425918344,1782035457000,-500.0,0.00027945,2]
[425918351,1782035457000,-500.0,0.00027945,2]
[425918350,1782035457000,-500.0,0.00027945,2]
[425918349,1782035457000,-500.0,0.00027945,2]
[425918425,1782035458000,-500.0,0.00027945,2]
[425918430,1782035458000,-500.0,0.00027945,2]
[425918428,1782035458000,-662.49,0.00027945,2]
[425918434,1782035458000,-500.0,0.00027945,2]
[425918416,1782035458000,-541.29,0.00027945,2]
[425918431,1782035458000,-500.0,0.00027945,2]
[425918422,1782035458000,-640.6,0.00027945,2]
[425918417,1782035458000,-500.38,0.00027945,2]
[425918419,1782035458000,-500.0,0.00027945,2]
[425918429,1782035458000,-2321.91,0.00027945,2]
[425918432,1782035458000,-500.0,0.00027945,2]
[425918444,1782035458000,-500.0,0.00027945,2]
[425918435,1782035458000,-500.0,0.00027945,2]
[425918426,1782035458000,-940.98,0.00027945,2]
[425918427,1782035458000,-500.0,0.00027945,2]
[425918438,1782035458000,-500.0,0.00027945,2]
[425918421,1782035458000,-500.0,0.00027945,2]
[425918437,1782035458000,-500.0,0.00027945,2]
[425918448,1782035458000,-500.0,0.00027945,2]
[425918447,1782035458000,-500.0,0.00027945,2]
[425918446,1782035458000,-500.0,0.00027945,2]
[425918439,1782035458000,-500.0,0.00027945,2]
[425918445,1782035458000,-1248.66,0.00027945,2]
[425918443,1782035458000,-500.0,0.00027945,2]
[425918436,1782035458000,-500.0,0.00027945,2]
[425918433,1782035458000,-500.0,0.00027945,2]
[425918413,1782035458000,-524.48,0.00027945,2]
[425918411,1782035458000,-500.0,0.00027945,2]
[425918415,1782035458000,-500.0,0.00027945,2]
[425918442,1782035458000,-523.24,0.00027945,2]
[425918390,1782035458000,-500.0,0.00027945,2]
[425918392,1782035458000,-545.34,0.00027945,2]
[425918401,1782035458000,-500.0,0.00027945,2]
[425918391,1782035458000,-500.0,0.00027945,2]
[425918395,1782035458000,-808.7,0.00027945,2]
[425918393,1782035458000,-500.0,0.00027945,2]
[425918398,1782035458000,-500.0,0.00027945,2]
[425918400,1782035458000,-500.0,0.00027945,2]
[425918399,1782035458000,-500.0,0.00027945,2]
[425918394,1782035458000,-500.0,0.00027945,2]
[425918397,1782035458000,-500.0,0.00027945,2]
[425918420,1782035458000,-500.0,0.00027945,2]
[425918396,1782035458000,-500.0,0.00027945,2]
[425918409,1782035458000,-500.0,0.00027945,2]
[425918404,1782035458000,-500.0,0.00027945,2]
[425918408,1782035458000,-500.0,0.00027945,2]
[425918407,1782035458000,-500.0,0.00027945,2]
[425918412,1782035458000,-500.0,0.00027945,2]
[425918403,1782035458000,-2728.68,0.00027945,2]
[425918402,1782035458000,-500.0,0.00027945,2]
[425918406,1782035458000,-500.0,0.00027945,2]
[425918424,1782035458000,-500.0,0.00027945,2]
[425918414,1782035458000,-500.0,0.00027945,2]
[425918418,1782035458000,-500.0,0.00027945,2]
[425918423,1782035458000,-500.0,0.00027945,2]
[425918410,1782035458000,-500.0,0.00027945,2]
[425918405,1782035458000,-152.82369895,0.00027945,2]
[425918441,1782035458000,-500.0,0.00027945,2]
[425918453,1782035458000,-500.0,0.00027945,2]
[425918474,1782035458000,-500.0,0.00027945,2]
[425918475,1782035458000,-500.0,0.00027945,2]
[425918478,1782035458000,-500.0,0.00027945,2]
[425918481,1782035458000,-500.0,0.00027945,2]
[425918484,1782035458000,-500.0,0.00027945,2]
[425918489,1782035458000,-500.0,0.00027945,2]
[425918486,1782035458000,-707.35,0.00027945,2]
[425918490,1782035458000,-500.0,0.00027945,2]
[425918488,1782035458000,-385.93139769,0.00027945,2]
[425918487,1782035458000,-500.0,0.00027945,2]
[425918491,1782035458000,-1372.89,0.00027945,2]
[425918485,1782035458000,-500.0,0.00027945,2]
[425918476,1782035458000,-500.0,0.00027945,2]
[425918493,1782035458000,-500.0,0.00027945,2]
[425918505,1782035458000,-500.0,0.00027945,2]
[425918497,1782035458000,-899.58,0.00027945,2]
[425918500,1782035458000,-691.3,0.00027945,2]
[425918501,1782035458000,-563.53,0.00027945,2]
[425918503,1782035458000,-500.0,0.00027945,2]
[425918496,1782035458000,-892.83,0.00027945,2]
[425918502,1782035458000,-500.0,0.00027945,2]
[425918495,1782035458000,-615.87,0.00027945,2]
[425918499,1782035458000,-500.0,0.00027945,2]
[425918498,1782035458000,-500.0,0.00027945,2]
[425918504,1782035458000,-500.0,0.00027945,2]
[425918440,1782035458000,-500.0,0.00027945,2]
[425918494,1782035458000,-500.0,0.00027945,2]
[425918480,1782035458000,-500.0,0.00027945,2]
[425918492,1782035458000,-580.59,0.00027945,2]
[425918479,1782035458000,-500.0,0.00027945,2]
[425918477,1782035458000,-500.0,0.00027945,2]
[425918454,1782035458000,-500.0,0.00027945,2]
[425918449,1782035458000,-500.0,0.00027945,2]
[425918457,1782035458000,-500.0,0.00027945,2]
[425918456,1782035458000,-558.54,0.00027945,2]
[425918455,1782035458000,-500.0,0.00027945,2]
[425918451,1782035458000,-561.83803749,0.00027945,2]
[425918452,1782035458000,-734.1,0.00027945,2]
[425918458,1782035458000,-500.0,0.00027945,2]
[425918468,1782035458000,-500.0,0.00027945,2]
[425918465,1782035458000,-500.0,0.00027945,2]
[425918463,1782035458000,-831.36,0.00027945,2]
[425918459,1782035458000,-500.0,0.00027945,2]
[425918450,1782035458000,-500.0,0.00027945,2]
[425918467,1782035458000,-500.0,0.00027945,2]
[425918460,1782035458000,-500.0,0.00027945,2]
[425918473,1782035458000,-551.69,0.00027945,2]
[425918482,1782035458000,-500.0,0.00027945,2]
[425918472,1782035458000,-500.0,0.00027945,2]
[425918483,1782035458000,-500.0,0.00027945,2]
[425918464,1782035458000,-500.0,0.00027945,2]
[425918471,1782035458000,-500.0,0.00027945,2]
[425918466,1782035458000,-500.0,0.00027945,2]
[425918461,1782035458000,-500.0,0.00027945,2]
[425918462,1782035458000,-910.98,0.00027945,2]
[425918469,1782035458000,-500.0,0.00027945,2]
[425918470,1782035458000,-500.0,0.00027945,2]
[425918547,1782035459000,-500.0,0.00027945,2]
[425918552,1782035459000,-500.0,0.00027945,2]
[425918544,1782035459000,-500.0,0.00027945,2]
[425918536,1782035459000,-500.0,0.00027945,2]
[425918545,1782035459000,-500.0,0.00027945,2]
[425918537,1782035459000,-782.61,0.00027945,2]
[425918539,1782035459000,-500.0,0.00027945,2]
[425918538,1782035459000,-500.0,0.00027945,2]
[425918534,1782035459000,-500.0,0.00027945,2]
[425918535,1782035459000,-500.0,0.00027945,2]
[425918554,1782035459000,-500.0,0.00027945,2]
[425918546,1782035459000,-500.0,0.00027945,2]
[425918553,1782035459000,-500.0,0.00027945,2]
[425918548,1782035459000,-500.0,0.00027945,2]
[425918543,1782035459000,-500.0,0.00027945,2]
[425918542,1782035459000,-500.0,0.00027945,2]
[425918549,1782035459000,-500.0,0.00027945,2]
[425918551,1782035459000,-563.28,0.00027945,2]
[425918550,1782035459000,-500.0,0.00027945,2]
[425918562,1782035459000,-500.0,0.00027945,2]
[425918563,1782035459000,-2766.24,0.00027945,2]
[425918559,1782035459000,-476.983084,0.00027945,2]
[425918558,1782035459000,-500.0,0.00027945,2]
[425918557,1782035459000,-1100.43,0.00027945,2]
[425918567,1782035459000,-1370.81,0.00027945,2]
[425918533,1782035459000,-500.0,0.00027945,2]
[425918555,1782035459000,-500.0,0.00027945,2]
[425918532,1782035459000,-500.0,0.00027945,2]
[425918568,1782035459000,-500.0,0.00027945,2]
[425918529,1782035459000,-500.0,0.00027945,2]
[425918506,1782035459000,-595.06,0.00027945,2]
[425918507,1782035459000,-500.0,0.00027945,2]
[425918509,1782035459000,-500.0,0.00027945,2]
[425918511,1782035459000,-500.0,0.00027945,2]
[425918513,1782035459000,-500.0,0.00027945,2]
[425918510,1782035459000,-500.0,0.00027945,2]
[425918515,1782035459000,-500.0,0.00027945,2]
[425918508,1782035459000,-2411.87,0.00027945,2]
[425918516,1782035459000,-500.0,0.00027945,2]
[425918514,1782035459000,-500.0,0.00027945,2]
[425918512,1782035459000,-687.28,0.00027945,2]
[425918519,1782035459000,-500.0,0.00027945,2]
[425918531,1782035459000,-500.0,0.00027945,2]
[425918521,1782035459000,-500.0,0.00027945,2]
[425918522,1782035459000,-500.0,0.00027945,2]
[425918524,1782035459000,-906.19,0.00027945,2]
[425918518,1782035459000,-500.0,0.00027945,2]
[425918528,1782035459000,-500.0,0.00027945,2]
[425918526,1782035459000,-500.0,0.00027945,2]
[425918520,1782035459000,-500.0,0.00027945,2]
[425918523,1782035459000,-500.0,0.00027945,2]
[425918527,1782035459000,-322.39265818,0.00027945,2]
[425918525,1782035459000,-524.72212906,0.00027945,2]
[425918530,1782035459000,-500.0,0.00027945,2]
[425918540,1782035459000,-500.0,0.00027945,2]
[425918541,1782035459000,-500.0,0.00027945,2]
[425918517,1782035459000,-1065.83,0.00027945,2]
[425918564,1782035459000,-500.0,0.00027945,2]
[425918560,1782035459000,-500.0,0.00027945,2]
[425918618,1782035459000,-553.30691989,0.00027945,2]
[425918597,1782035459000,-500.0,0.00027945,2]
[425918591,1782035459000,-500.0,0.00027945,2]
[425918598,1782035459000,-500.0,0.00027945,2]
[425918593,1782035459000,-218.66906277,0.00027945,2]
[425918599,1782035459000,-570.51,0.00027945,2]
[425918595,1782035459000,-500.0,0.00027945,2]
[425918604,1782035459000,-581.25,0.00027945,2]
[425918603,1782035459000,-311.21192565,0.00027945,2]
[425918610,1782035459000,-500.0,0.00027945,2]
[425918611,1782035459000,-500.0,0.00027945,2]
[425918605,1782035459000,-500.0,0.00027945,2]
[425918607,1782035459000,-968.49,0.00027945,2]
[425918596,1782035459000,-500.0,0.00027945,2]
[425918606,1782035459000,-500.0,0.00027945,2]
[425918612,1782035459000,-500.0,0.00027945,2]
[425918613,1782035459000,-500.0,0.00027945,2]
[425918620,1782035459000,-500.0,0.00027945,2]
[425918614,1782035459000,-619.21,0.00027945,2]
[425918621,1782035459000,-500.0,0.00027945,2]
[425918617,1782035459000,-500.0,0.00027945,2]
[425918615,1782035459000,-500.0,0.00027945,2]
[425918616,1782035459000,-1096.25,0.00027945,2]
[425918619,1782035459000,-500.0,0.00027945,2]
[425918622,1782035459000,-500.0,0.00027945,2]
[425918565,1782035459000,-884.5,0.00027945,2]
[425918623,1782035459000,-1000.0,0.00027945,2]
[425918609,1782035459000,-500.0,0.00027945,2]
[425918602,1782035459000,-500.0,0.00027945,2]
[425918608,1782035459000,-500.0,0.00027945,2]
[425918600,1782035459000,-500.0,0.00027945,2]
[425918561,1782035459000,-522.63822228,0.00027945,2]
[425918566,1782035459000,-817.01,0.00027945,2]
[425918556,1782035459000,-500.0,0.00027945,2]
[425918572,1782035459000,-500.0,0.00027945,2]
[425918594,1782035459000,-885.15,0.00027945,2]
[425918569,1782035459000,-500.0,0.00027945,2]
[425918576,1782035459000,-500.0,0.00027945,2]
[425918578,1782035459000,-515.31,0.00027945,2]
[425918570,1782035459000,-500.0,0.00027945,2]
[425918571,1782035459000,-2495.86,0.00027945,2]
[425918579,1782035459000,-500.0,0.00027945,2]
[425918575,1782035459000,-500.0,0.00027945,2]
[425918577,1782035459000,-967.92,0.00027945,2]
[425918574,1782035459000,-500.0,0.00027945,2]
[425918573,1782035459000,-500.0,0.00027945,2]
[425918580,1782035459000,-500.0,0.00027945,2]
[425918581,1782035459000,-4188.27,0.00027945,2]
[425918601,1782035459000,-500.0,0.00027945,2]
[425918592,1782035459000,-500.0,0.00027945,2]
[425918585,1782035459000,-3386.35,0.00027945,2]
[425918583,1782035459000,-572.43,0.00027945,2]
[425918587,1782035459000,-500.0,0.00027945,2]
[425918582,1782035459000,-500.0,0.00027945,2]
[425918589,1782035459000,-554.32,0.00027945,2]
[425918584,1782035459000,-3972.0,0.00027945,2]
[425918590,1782035459000,-541.69278581,0.00027945,2]
[425918588,1782035459000,-536.22,0.00027945,2]
[425918586,1782035459000,-500.0,0.00027945,2]
[425918665,1782035460000,-500.0,0.00027945,2]
[425918648,1782035460000,-500.0,0.00027945,2]
[425918644,1782035460000,-500.0,0.00027945,2]
[425918645,1782035460000,-454.52756795,0.00027945,2]
[425918651,1782035460000,-500.0,0.00027945,2]
[425918655,1782035460000,-500.0,0.00027945,2]
[425918666,1782035460000,-500.0,0.00027945,2]
[425918660,1782035460000,-500.0,0.00027945,2]
[425918650,1782035460000,-500.0,0.00027945,2]
[425918654,1782035460000,-609.73,0.00027945,2]
[425918657,1782035460000,-500.0,0.00027945,2]
[425918658,1782035460000,-3475.06,0.00027945,2]
[425918662,1782035460000,-500.0,0.00027945,2]
[425918663,1782035460000,-500.0,0.00027945,2]
[425918659,1782035460000,-773.44,0.00027945,2]
[425918664,1782035460000,-500.0,0.00027945,2]
[425918661,1782035460000,-6980.09,0.00027945,2]
[425918677,1782035460000,-6347.0,0.00027945,2]
[425918674,1782035460000,-1134.34,0.00027945,2]
[425918675,1782035460000,-1370.96,0.00027945,2]
[425918647,1782035460000,-500.0,0.00027945,2]
[425918656,1782035460000,-3660.68,0.00027945,2]
[425918646,1782035460000,-500.0,0.00027945,2]
[425918671,1782035460000,-265.03,0.00027945,2]
[425918653,1782035460000,-2037.18,0.00027945,2]
[425918673,1782035460000,-500.0,0.00027945,2]
[425918624,1782035460000,-613.28,0.00027945,2]
[425918626,1782035460000,-500.0,0.00027945,2]
[425918625,1782035460000,-500.0,0.00027945,2]
[425918628,1782035460000,-500.0,0.00027945,2]
[425918640,1782035460000,-508.17092958,0.00027945,2]
[425918638,1782035460000,-6639.74,0.00027945,2]
[425918639,1782035460000,-500.0,0.00027945,2]
[425918627,1782035460000,-500.0,0.00027945,2]
[425918631,1782035460000,-500.0,0.00027945,2]
[425918642,1782035460000,-4676.93,0.00027945,2]
[425918629,1782035460000,-500.0,0.00027945,2]
[425918637,1782035460000,-719.57,0.00027945,2]
[425918632,1782035460000,-500.0,0.00027945,2]
[425918634,1782035460000,-500.0,0.00027945,2]
[425918633,1782035460000,-500.0,0.00027945,2]
[425918635,1782035460000,-7397.33,0.00027945,2]
[425918636,1782035460000,-3575.07,0.00027945,2]
[425918643,1782035460000,-5162.06,0.00027945,2]
[425918649,1782035460000,-500.0,0.00027945,2]
[425918652,1782035460000,-500.0,0.00027945,2]
[425918641,1782035460000,-500.0,0.00027945,2]
[425918630,1782035460000,-431.12,0.00027945,2]
[425918669,1782035460000,-541.03608534,0.00027945,2]
[425918688,1782035460000,-509.16937564,0.00027945,2]
[425918713,1782035460000,-4920.34,0.00027945,2]
[425918702,1782035460000,-518.40374912,0.00027945,2]
[425918701,1782035460000,-500.0,0.00027945,2]
[425918703,1782035460000,-3466.09,0.00027945,2]
[425918705,1782035460000,-500.0,0.00027945,2]
[425918706,1782035460000,-500.0,0.00027945,2]
[425918711,1782035460000,-500.0,0.00027945,2]
[425918709,1782035460000,-500.0,0.00027945,2]
[425918712,1782035460000,-500.0,0.00027945,2]
[425918715,1782035460000,-500.0,0.00027945,2]
[425918668,1782035460000,-500.0,0.00027945,2]
[425918704,1782035460000,-620.81,0.00027945,2]
[425918707,1782035460000,-9275.79,0.00027945,2]
[425918714,1782035460000,-500.0,0.00027945,2]
[425918710,1782035460000,-500.0,0.00027945,2]
[425918717,1782035460000,-500.0,0.00027945,2]
[425918723,1782035460000,-500.0,0.00027945,2]
[425918719,1782035460000,-756.65,0.00027945,2]
[425918718,1782035460000,-2579.1,0.00027945,2]
[425918720,1782035460000,-500.0,0.00027945,2]
[425918716,1782035460000,-500.0,0.00027945,2]
[425918721,1782035460000,-500.0,0.00027945,2]
[425918722,1782035460000,-5036.8,0.00027945,2]
[425918708,1782035460000,-524.46,0.00027945,2]
[425918697,1782035460000,-2558.89,0.00027945,2]
[425918699,1782035460000,-656.74,0.00027945,2]
[425918700,1782035460000,-4117.73,0.00027945,2]
[425918667,1782035460000,-7192.54,0.00027945,2]
[425918679,1782035460000,-500.0,0.00027945,2]
[425918678,1782035460000,-4162.08,0.00027945,2]
[425918672,1782035460000,-500.0,0.00027945,2]
[425918676,1782035460000,-500.0,0.00027945,2]
[425918670,1782035460000,-500.0,0.00027945,2]
[425918698,1782035460000,-500.0,0.00027945,2]
[425918692,1782035460000,-500.0,0.00027945,2]
[425918681,1782035460000,-500.0,0.00027945,2]
[425918691,1782035460000,-500.0,0.00027945,2]
[425918682,1782035460000,-500.0,0.00027945,2]
[425918686,1782035460000,-4074.57,0.00027945,2]
[425918693,1782035460000,-623.8851682,0.00027945,2]
[425918685,1782035460000,-548.21,0.00027945,2]
[425918680,1782035460000,-500.0,0.00027945,2]
[425918687,1782035460000,-500.0,0.00027945,2]
[425918690,1782035460000,-500.0,0.00027945,2]
[425918689,1782035460000,-5114.54,0.00027945,2]
[425918684,1782035460000,-654.69,0.00027945,2]
[425918696,1782035460000,-705.32,0.00027945,2]
[425918694,1782035460000,-500.0,0.00027945,2]
[425918683,1782035460000,-500.0,0.00027945,2]
[425918695,1782035460000,-1075.82,0.00027945,2]
[425918766,1782035461000,-500.0,0.00027945,2]
[425918763,1782035461000,-500.0,0.00027945,2]
[425918764,1782035461000,-500.0,0.00027945,2]